Cogmind - Beta 11.1 @@@ ROGUE MODE // 2022.05.01 @ 15:14:50 Player: Teratos Result: Destroyed by G-34 Mercenary with Small Laser Performance ------------- Evolutions (1) 500 Regions Visited (2) 400 Robots Destroyed (9) 45 Value Destroyed (142) 142 Prototype IDs (0) 0 Alien Tech Used (0) 0 Bonus (0) 0 TOTAL SCORE: 1087 Bonus ------- None Cogmind --------- Core Integrity 0/400 Matter 300/300 Energy 100/100 System Corruption 1% Temperature Cool (6) Movement Core (100) Ox1 Location -9/Materials Parts ------- > --- POWER (2) -------- (None) > --- PROPULSION (2) --- (None) > --- UTILITY (2) ------ Small Storage Unit Structural Scanner > --- WEAPON (3) ------- (None) > --- INVENTORY (8) ---- (None) Peak State ------------ > --- POWER ------------ Light Ion Engine Light Deuterium Engine > --- PROPULSION ------- Wheel Wheel > --- UTILITY ---------- Small Storage Unit Medium Battery > --- WEAPON ----------- EM Shotgun Small Laser Light Assault Rifle > --- INVENTORY -------- (None) [Rating: 12] Favorites ----------- Power Light Ion Engine Engine Light Ion Engine Propulsion Wheel Wheel Wheel Utility Small Storage Unit Device Structural Scanner Storage Small Storage Unit Protection Light Armor Plating Weapon Small Laser Energy Gun Small Laser Ballistic Gun Light Assault Rifle Build | -11 -10 -9 ------- Run | Scr Mat Mat Slots Evolved 2 | . . 2 Power 1 | . . 1 Propulsion . | . . . Utility . | . . . Weapon 1 | . . 1 Parts Attached 14 | 6 5 3 Power 2 | 1 . 1 Engine 2 | 1 . 1 Core . | . . . Reactor . | . . . Propulsion 3 | 2 1 . Treads . | . . . Leg . | . . . Wheel 3 | 2 1 . Hover . | . . . Flight . | . . . Utility 4 | 1 2 1 Device 1 | . . 1 Storage 2 | 1 1 . Processor . | . . . Hackware . | . . . Protection 1 | . 1 . Artifact . | . . . Weapon 5 | 2 2 1 Energy Gun 3 | 2 . 1 Energy Cannon . | . . . Ballistic Gun 2 | . 2 . Ballistic Cannon . | . . . Launcher . | . . . Special Weapon . | . . . Impact Weapon . | . . . Slashing Weapon . | . . . Piercing Weapon . | . . . Special Melee Weapon . | . . . Unidentified Prototypes . | . . . Parts Lost 8 | . 1 7 Power 1 | . . 1 Propulsion 2 | . . 2 Utility 2 | . 1 1 Weapon 3 | . . 3 Highest Loss Streak 7 | . 1 7 To Critical Strikes . | . . . Average Slot Usage (%) 70 | . 89 47 Engine 9 | . 14 4 Wheel 20 | . 28 10 Storage 16 | . 16 16 Protection 2 | . 5 . Energy Gun 14 | . 18 9 Ballistic Gun 5 | . 5 5 Naked Turns . | . . . Heaviest Build 20 | 11 14 20 Greatest Support 26 | 26 26 20 Greatest Overweight (x) 1 | . . 1 Average Overweight (x) . | . . . Largest Inventory Capacity 8 | 8 8 8 Average Capacity 7 | 6 8 8 Most Carried . | . . . Average Carried . | . . . Final Capacity 8 | 8 8 8 Final Carried . | . . . Class Distribution -------------------- 85% | Mutant 14% | Gunner Dominant Class ---------------- Mutant | -10/Materials Mutant | -9/Materials Resources | -11 -10 -9 ----------- Run | Scr Mat Mat Matter Collected 308 | 238 60 10 Remotely . | . . . Salvage Created 220 | . 220 . Parts 14 | . 14 . Haulers Intercepted . | . . . Recyclers Shooed . | . . . Parts Field Recycled . | . . . Retrieved Matter . | . . . Parts Self-Destructed . | . . . Prevented . | . . . Kills | -11 -10 -9 ------- Run | Scr Mat Mat Combat Hostiles Destroyed 8 | . 8 . Guns 8 | . 8 . Classes Destroyed 3 | . 3 . Worker 1 | . 1 . Swarmer 6 | . 6 . Grunt 2 | . 2 . Best Kill Streak 3 | . 3 . Combat Bots Only 3 | . 3 . Max Kills in Single Turn 1 | . 1 . Gunslinging . | . . . Exploded . | . . . Melee . | . . . Uniques/NPCs Destroyed . | . . . Combat | -11 -10 -9 -------- Run | Scr Mat Mat Damage Taken 1221 | . 365 856 Core 490 | . 84 406 Absorbed by Shields . | . . . Core Remaining (%) 83 | 100 66 . Volleys Fired 34 | . 27 7 Largest 3 | . 2 3 Hottest 105 | . 90 105 Shots Fired 73 | . 54 19 Gun 73 | . 54 19 Cannon . | . . . Launcher . | . . . Special . | . . . Kinetic 21 | . 14 7 Thermal 45 | . 40 5 Explosive . | . . . Electromagnetic 7 | . . 7 Robot Hit Streak 6 | . 4 6 Robot Miss Streak 8 | . 8 7 Penetration Max . | . . . Secondary Targets . | . . . Shots Hit Robots 28 | . 21 7 Core Hits 16 | . 12 4 Critical Kills . | . . . Critical Parts Destroyed . | . . . Critical Strikes . | . . . Melee Attacks . | . . . Impact . | . . . Slashing . | . . . Piercing . | . . . Sneak Attacks . | . . . Combat Hostiles . | . . . Follow-up Attacks . | . . . Damage Inflicted 399 | . 246 153 Guns 363 | . 246 117 Cannons . | . . . Explosions . | . . . Melee . | . . . Ramming 36 | . . 36 Kinetic 76 | . 52 24 Thermal 218 | . 194 24 Explosive . | . . . Electromagnetic 69 | . . 69 Impact . | . . . Slashing . | . . . Piercing . | . . . Highest Corruption 1 | . . 1 Average Corruption 1 | . . 1 Corruption Purged . | . . . Corruption Blocked . | . . . Effects 1 | . . 1 Data Loss (minor) 1 | . . 1 Overload Shots . | . . . Overflow Damage . | . . . Projectiles . | . . . Explosions . | . . . Melee . | . . . Knockbacks . | . . . Impact . | . . . Kinetic . | . . . Secondary . | . . . Self-Inflicted Damage 17 | . . 17 Shots . | . . . Rammed 15 | . . 15 Targets Rammed 15 | . . 15 Kicked . | . . . Crushed . | . . . Highest Temperature 351 | . 351 209 Average Temperature 118 | . 127 84 Received Heat Transfer 552 | . 90 462 Siege Activations . | . . . Robots Corrupted . | . . . Combat Hostiles . | . . . Parts Fried . | . . . Impact Corruptions . | . . . Robots Melted . | . . . Combat Hostiles . | . . . Parts Melted . | . . . Heat Transferred 535 | . 485 50 Parts Sabotaged . | . . . Parts Stolen . | . . . Parts Stripped . | . . . Power Chain Reactions . | . . . Missiles Intercepted . | . . . Alert | -11 -10 -9 ------- Run | Scr Mat Mat Peak Influence 230 | . 230 105 Initial 12 | . . 12 Average 72 | . 136 21 Maximum Alert Level 1 | . 1 . Low Security (%) 78 | 100 54 100 Level 1 21 | . 45 . Level 2 . | . . . Level 3 . | . . . Level 4 . | . . . Level 5 . | . . . High Security . | . . . Max Security . | . . . Squads Dispatched . | . . . Investigation . | . . . Extermination . | . . . Reinforcement . | . . . Assault . | . . . Garrison . | . . . Intercept . | . . . Searches Triggered . | . . . Construction Impeded . | . . . Haulers Reinforced . | . . . Active Scanning Responses . | . . . Cargo Convoy Interrupts . | . . . Stealth | -11 -10 -9 --------- Run | Scr Mat Mat Distress Signals 4 | . 1 3 Communications Jammed . | . . . Distress Signals . | . . . Times Spotted 25 | . 10 15 Peak Tracking Total 12 | . 4 12 Tactical Retreats 3 | . 1 2 Traps | -11 -10 -9 ------- Run | Scr Mat Mat Traps Triggered 1 | . 1 . Indirectly . | . . . Trap Hack Attempts . | . . . Triggered . | . . . Disarmed . | . . . Reprogrammed . | . . . Reused . | . . . Traps Extracted . | . . . Installed . | . . . Triggered . | . . . Machines | -11 -10 -9 ---------- Run | Scr Mat Mat Machines Disabled . | . . . Max in Single Turn . | . . . Machines Sabotaged . | . . . Garrisons Compromised . | . . . Overloaded Fab Kills . | . . . Hacking | -11 -10 -9 --------- Run | Scr Mat Mat Machines Accessed . | . . . Terminals . | . . . Fabricators . | . . . Repair Stations . | . . . Recycling Units . | . . . Scanalyzers . | . . . Garrison Access . | . . . Total Hacks . | . . . Successful . | . . . Failed . | . . . Catastrophic . | . . . Database Lockouts . | . . . Manual 1 | . . 1 Terminals . | . . . Fabricators . | . . . Repair Stations . | . . . Recycling Units . | . . . Scanalyzers . | . . . Garrison Access . | . . . Terminal Hacks . | . . . Fabricator Hacks . | . . . Repair Station Hacks . | . . . Recycling Unit Hacks . | . . . Scanalyzer . | . . . Garrison Access Hacks . | . . . Unauthorized Hacks . | . . . Terminals . | . . . Fabricators . | . . . Repair Stations . | . . . Recycling Units . | . . . Scanalyzers . | . . . Garrison Access . | . . . Data Cores Recovered . | . . . Used . | . . . Hacking Detections . | . . . Full Trace Events . | . . . Feedback Events . | . . . Feedback Blocked . | . . . Robot Schematics Acquired . | . . . Robots Built . | . . . Authchips . | . . . Time . | . . . Total Robot Build Rating . | . . . Part Schematics Acquired . | . . . Parts Built . | . . . Authchips . | . . . Time . | . . . Total Part Build Rating . | . . . Parts Repaired . | . . . Time . | . . . Parts Recycled . | . . . Recycled Matter . | . . . Retrieved Matter . | . . . Retrieved Components . | . . . Parts Scanalyzed . | . . . Part Schematics Acquired . | . . . Parts Damaged . | . . . Bothacking | -11 -10 -9 ------------ Run | Scr Mat Mat Used RIF Installer . | . . . Robots Hacked . | . . . Non-combat . | . . . Combat . | . . . Robot Hacks Applied . | . . . Relay Couplers Released . | . . . Fabnet Peak Effective % . | . . . Robots Rewired . | . . . Allies Hacked . | . . . Hacks Repelled . | . . . Allies | -11 -10 -9 -------- Run | Scr Mat Mat Total Allies . | . . . Largest Group . | . . . Highest-Rated Group . | . . . Highest-Rated Ally . | . . . Total Orders . | . . . Ally Attacks . | . . . Total Damage . | . . . Kills . | . . . Allies Corrupted . | . . . Allies Melted . | . . . Intel | -11 -10 -9 ------- Run | Scr Mat Mat Robot Analysis Total . | . . . Derelict Logs Recovered . | . . . Drone Launches . | . . . Drone Recoveries . | . . . Exploration | -11 -10 -9 ------------- Run | Scr Mat Mat Turns Passed 861 | 132 404 325 Spaces Moved 850 | 163 372 315 Core 203 | 61 . 142 Treads . | . . . Legs . | . . . Wheels 647 | 102 372 173 Hover . | . . . Flight . | . . . Fastest Speed 50 | 50 80 80 Average Speed 84 | 74 84 89 Slowest Speed 100 | 90 90 100 Overloaded Moves . | . . . Propulsion Burnouts . | . . . Robots Hopped . | . . . Cave-ins Triggered . | . . . Exploration Rate (%) 23 | 6 44 19 Regions Visited 2 Branch Regions . Pre-discovered Areas . | . . . Known Exits Taken . | . . . Unknown Exits Taken 2 | 1 1 . Scrap Searched . | . . . Spaces Dug . | . . . Terrain Destroyed . | . . . Melee . | . . . Projectile . | . . . AOE . | . . . Terrain Rammed . | . . . Walls Destroyed . | . . . Machines Disabled . | . . . Actions | -11 -10 -9 --------- Run | Scr Mat Mat Total 919 | 170 407 342 Wait 5 | 2 2 1 Move 848 | 162 371 315 Hop . | . . . Pick Up . | . . . Fast Attach 14 | 6 5 3 Attach . | . . . Detach . | . . . Swap . | . . . Drop 3 | . 2 1 Fire 34 | . 27 7 Melee . | . . . Ram 15 | . . 15 Kick . | . . . Crush . | . . . Escape Stasis . | . . . Rewire . | . . . Trap . | . . . Miscellaneous . | . . . Route ------- -11/Scrapyard -10/Materials (discovered 2 exits: *Mat / [*Min]) -9/Materials History --------- Turn | Location | Event 14 | -11/Scrapyard | Discovered new exit (range 16) 133 | -11/Scrapyard | Entered Materials 301 | -10/Materials | Build established: Mutant 407 | -10/Materials | Discovered new exit (range 12) 499 | -10/Materials | Discovered new exit (range 9) 537 | -10/Materials | Entered another Materials area 537 | -9/Materials | Evolved 2 slots: Power x1, Weapon x1 742 | -9/Materials | Lost 7 parts (1p2n1u3w) 794 | -9/Materials | Core integrity fell below 50% 819 | -9/Materials | Core integrity fell below 20% 862 | -9/Materials | Destroyed by G-34 Mercenary with Small Laser Last Messages --------------- 00711_ Wheel destroyed. 00721_ Slammed into R-06 Scavenger. 00735_ Connecting with Terminal... 00735_ Current location identified: Materials 00749_ U-05 Engineer destroyed. 00764_ K-01 Serf collects debris. 00796_ Critical hit (Burn: +37). 00798_ Matter Filter disabled. 00799_ Slammed into G-47 Trooper. 00801_ K-01 Serf collects debris. 00801_ Slammed into G-47 Trooper. 00801_ Destabilizing: Core damaged (-4). 00802_ Slammed into G-34 Mercenary. 00822_ R-06 Scavenger collects Terrain Scan Processor. 00825_ Acquired Structural Scanner. 00826_ Acquired 10 matter. 00834_ U-05 Engineer destroyed. 00843_ K-01 Serf collects debris. 00846_ K-01 Serf cleans the Recycling Unit. 00849_ K-01 Serf collects debris. Map ----- +----------------------------------------------------+ | ??????????????????????????????????? | | ??????????????????????????????????? | | ??????????????????????###########?? | | ??????????????????????#! [ #?? | | ??????????????????????# #?? | | ??????????????????????# """"""" ##? | | ??????????????????????# """"""" #? | | ??????????????????????# """"""%%##? | | ??????????????????????# """""""%#?? | | ????????? ????????# """"""%%#?? | | ?????????##+##????????# %%#?? | | ????????? ???##########+###/#?? | | ?????????? %#?? | | ?????????? %#?? | | ?????????? ### | | ????????? #################/### | | ?????????## ########### """ """ # | | ??????##### # ### """ """ # | | ??????##### # "" ### """ """ # | | ??????## / Y" ### # | | ??????## #### "" ### # | | ??????## #### ### # | | ??????## ######/####### # | | ??????## #### ##########/###### | | ??????## #### gg | | ??????## @ g T | | ??????####### % % | | ??????####### ###+######/###### | | ??????######### ### # # | | ??????# # ### ??????? """ ?? | | ??????# / ##???????? """ # | | ??????# # ##???????? """ # | | ??????# # ##???????# # | | ??????# # #????????# """ ? # | | ??????######### #????????# ""????? | | ???????######## ########## ??????? | | ???????# # # ## ??????? | | ???????# """ #%# #####??????? | | ???????# """ !# # """ #????????#?? | | ???????# """ # # """ #???####/### | | ???????# """ / / """ #?? # | | ???????# # # % #?? # | | ???????######## #####+### [[# | | ?????????##### % # []# | | ?????????#!! % + # | | ?????????#!! # # | | ?????????#!! ######## # | | ?????????#!! #???????? # | | ?????????#* #????????######+## | | ?????????#** #????????????????? | +----------------------------------------------------+ Best States ------------- Heat Dissipation 28 Energy Generation 14 Energy Capacity 290 Matter Stores 300 Matter Capacity 300 Sight Range 16 Terrain Scan Density 10 Armor Coverage 150 Evasion (%) 50 Item Schematics ----------------- None Robot Schematics ------------------ None Fabricated ------------ Nothing Alien Tech Used ----------------- None Achievements -------------- None Challenges ------------ None Game ------ Seed MinesnifferOpticalPick Manual? 0 Play Time 00:10:36 Cumulative 64.4 hours Start 2022.05.01 @ 15:06:14 End 2022.05.01 @ 15:14:50 Sessions 1 Manual Loads 0 Difficulty Rogue Special Mode None Game No. 139 Rogue 139 Adventurer 0 Explorer 0 Win Type - Total 0 Types 0/0/0/0/0/0/0/0/0 Lore% 25 Gallery% 31 Achievement% 26 Wizard Run 0 Options --------- ASCII 0 Keyboard 0 Movement Numpad Keybinds 0 Fullscreen 1 Font 18/SmallcapsGlow Map View 76x50 Tactical HUD 1 Map Filters NONE Filters NONE Steam 1 RUN: b7e538a9-2702-430e-b39f-de797eb34f05